fUST/lending_fUST_20250821
["ID","MTS","AMOUNT","RATE_DAILY","PERIOD"]
[380430472,1755759050079,-480.0,0.00021917,3]
[380430473,1755759050088,-480.0,0.00021917,3]
[380430474,1755759050098,-480.0,0.00021917,3]
[380430475,1755759050107,-480.0,0.00021917,3]
[380430476,1755759050118,-1453.76,0.00021917,3]
[380430477,1755759050128,-943.8,0.00021917,3]
[380430478,1755759050137,-480.0,0.00021917,3]
[380430479,1755759050146,-480.0,0.00021917,3]
[380430480,1755759050155,-2039.01,0.00021917,3]
[380430481,1755759050165,-780.42,0.00021917,3]
[380430482,1755759050174,-480.0,0.00021917,3]
[380430483,1755759050183,-480.0,0.00021917,3]
[380430484,1755759050192,-480.0,0.00021917,3]
[380430485,1755759050202,-935.58,0.00021917,3]
[380430486,1755759050211,-480.0,0.00021917,2]
[380430487,1755759050221,-480.0,0.00021917,3]
[380430488,1755759050230,-480.0,0.00021917,3]
[380430489,1755759050240,-480.0,0.00021917,3]
[380430490,1755759050249,-480.0,0.00021917,3]
[380430491,1755759050259,-5229.26,0.00021917,3]
[380430492,1755759050269,-480.0,0.00021917,3]
[380430493,1755759050278,-480.0,0.00021917,3]
[380430494,1755759050288,-594.38,0.00021917,3]
[380430495,1755759050298,-480.0,0.00021917,3]
[380430496,1755759050307,-480.0,0.00021917,3]
[380430497,1755759050316,-480.0,0.00021917,3]
[380430498,1755759050326,-480.0,0.00021917,3]
[380430499,1755759050335,-679.89,0.00021917,3]
[380430500,1755759050344,-480.0,0.00021917,3]
[380430501,1755759050353,-466.85741089,0.00021917,3]
[380430502,1755759050363,-1188.31,0.00021917,3]
[380430503,1755759050373,-480.0,0.00021917,3]
[380430504,1755759050382,-480.0,0.00021917,3]
[380430505,1755759050396,-480.0,0.00021917,3]
[380430506,1755759050405,-480.0,0.00021917,3]
[380430507,1755759050414,-789.7,0.00021917,3]
[380430508,1755759050423,-480.0,0.00021917,3]
[380430509,1755759050433,-480.0,0.00021917,3]
[380430510,1755759050442,-480.0,0.00021917,3]
[380430511,1755759050452,-480.0,0.00021917,3]
[380430512,1755759050462,-480.0,0.00021917,3]
[380430513,1755759050471,-564.42960505,0.00021917,3]
[380430514,1755759050481,-480.0,0.00021917,3]
[380430515,1755759050489,-480.0,0.00021917,3]
[380430516,1755759050499,-480.0,0.00021917,3]
[380430517,1755759050508,-480.0,0.00021917,2]
[380430518,1755759050517,-481.30713774,0.00021917,3]
[380430519,1755759050526,-480.0,0.00021917,3]
[380430520,1755759050539,-480.0,0.00021917,3]
[380430521,1755759050548,-480.0,0.00021917,3]
[380430522,1755759050558,-832.24,0.00021917,3]
[380430523,1755759050568,-663.89,0.00021917,3]
[380430524,1755759050577,-480.0,0.00021917,3]
[380430525,1755759050586,-480.0,0.00021917,3]
[380430526,1755759050596,-480.0,0.00021917,3]
[380430527,1755759050605,-480.0,0.00021917,3]
[380430528,1755759050615,-715.77,0.00021917,3]
[380430529,1755759050624,-480.0,0.00021917,3]
[380430530,1755759050634,-480.0,0.00021917,3]
[380430531,1755759050643,-480.0,0.00021917,3]
[380430532,1755759050653,-480.0,0.00021917,3]
[380430533,1755759050662,-480.0,0.00021917,3]
[380430534,1755759050672,-150.0,0.00021973,2]
[380430535,1755759050681,-1000.0,0.00021973,2]
[380430536,1755759050690,-150.84265623,0.00021973,2]
[380430537,1755759050700,-500.0,0.00021973,2]
[380430538,1755759050709,-526.01583443,0.00021973,2]
[380430539,1755759050718,-162.54853692,0.00021973,2]
[380430540,1755759050728,-281.02325921,0.00021973,2]
[380430541,1755759050737,-500.0,0.00021973,2]
[380430542,1755759050749,-500.0,0.00021973,2]
[380430543,1755759050759,-500.0,0.00021973,2]
[380430544,1755759050768,-622.53869808,0.00021973,2]
[380430545,1755759050777,-500.5675206,0.00021973,2]
[380430546,1755759050786,-500.0,0.00021973,2]
[380430547,1755759050796,-502.31162221,0.00021973,2]
[380430548,1755759050805,-500.0,0.00021973,2]
[380430549,1755759050814,-500.0,0.00021973,2]
[380430550,1755759050824,-500.0,0.00021973,2]
[380430551,1755759050833,-500.0,0.00021973,2]
[380430552,1755759050842,-500.0,0.00021973,2]
[380430553,1755759050852,-217.0,0.00021973,2]
[380430554,1755759050861,-3977.39,0.00022,7]
[380430555,1755759050870,-22063.57,0.00022,2]
[380430556,1755759050879,-972.12577664,0.00022041,2]
[380430557,1755759050888,-271.92419519,0.00022191,3]
[380430558,1755759050898,-480.0,0.00022191,3]
[380430559,1755759050907,-212.47884763,0.00022191,3]
[380430560,1755759050916,-480.0,0.00022191,3]
[380430561,1755759050925,-480.0,0.00022191,3]
[380430562,1755759050935,-480.0,0.00022191,3]
[380430563,1755759050944,-480.0,0.00022191,3]
[380430564,1755759050954,-480.0,0.00022191,3]
[380430565,1755759050963,-480.0,0.00022191,3]
[380430566,1755759050972,-480.0,0.00022191,3]
[380430567,1755759050981,-480.0,0.00022191,3]
[380430568,1755759050991,-480.0,0.00022191,3]
[380430569,1755759051001,-362.90011587,0.00022191,3]
[380430570,1755759051010,-480.0,0.00022191,3]
[380430571,1755759051019,-480.0,0.00022191,3]
[380430572,1755759051028,-239.33855755,0.00022191,3]
[380430573,1755759051038,-480.0,0.00022191,3]
[380430574,1755759051047,-480.0,0.00022191,3]
[380430575,1755759051056,-527.95613671,0.00022191,3]
[380430576,1755759051066,-480.0,0.00022191,3]
[380430577,1755759051076,-480.0,0.00022191,3]
[380430578,1755759051085,-480.0,0.00022191,3]
[380430579,1755759051094,-576.35285608,0.00022191,3]
[380430580,1755759051104,-864.04,0.00022191,3]
[380430581,1755759051113,-480.0,0.00022191,3]
[380430582,1755759051122,-453.0404139,0.00022191,3]
[380430583,1755759051132,-363.83008373,0.00022191,3]
[380430584,1755759051141,-480.0,0.00022191,3]
[380430585,1755759051151,-480.0,0.00022191,3]
[380430586,1755759051160,-480.0,0.00022191,3]
[380430587,1755759051170,-480.0,0.00022191,3]
[380430588,1755759051179,-480.0,0.00022191,3]
[380430589,1755759051189,-480.0,0.00022191,3]
[380430590,1755759051198,-480.0,0.00022191,3]
[380430591,1755759051207,-480.0,0.00022191,3]
[380430592,1755759051217,-480.0,0.00022191,3]
[380430593,1755759051227,-480.0,0.00022191,3]
[380430594,1755759051236,-480.0,0.00022191,3]
[380430595,1755759051246,-480.0,0.00022191,3]
[380430596,1755759051255,-480.0,0.00022191,3]
[380430597,1755759051265,-481.25525595,0.00022191,3]
[380430598,1755759051274,-480.0,0.00022191,3]
[380430599,1755759051284,-480.0,0.00022191,3]
[380430600,1755759051293,-480.0,0.00022191,3]
[380430601,1755759051303,-480.0,0.00022191,3]
[380430602,1755759051312,-480.0,0.00022191,3]
[380430603,1755759051321,-480.0,0.00022191,3]
[380430604,1755759051331,-480.0,0.00022191,3]
[380430605,1755759051340,-983.12,0.00022191,3]
[380430606,1755759051350,-461.55293979,0.00022191,3]
[380430607,1755759051359,-693.89,0.00022191,3]
[380430608,1755759051369,-480.0,0.00022191,3]
[380430609,1755759051378,-224.46608075,0.00022191,3]
[380430610,1755759051392,-480.0,0.00022191,3]
[380430611,1755759051401,-480.0,0.00022191,3]
[380430612,1755759051411,-480.0,0.00022191,3]
[380430613,1755759051420,-480.0,0.00022191,3]
[380430614,1755759051430,-480.0,0.00022191,3]
[380430615,1755759051440,-480.0,0.00022191,3]
[380430616,1755759051451,-323.25860485,0.00022191,3]
[380430617,1755759051461,-480.0,0.00022191,3]
[380430618,1755759051470,-480.0,0.00022191,3]
[380430619,1755759051480,-480.0,0.00022191,3]
[380430620,1755759051490,-480.0,0.00022191,3]
[380430621,1755759051500,-425.73551991,0.00022191,3]
[380430622,1755759051509,-253.69224009,0.00022191,3]
[380430623,1755759051519,-480.0,0.00022191,3]
[380430624,1755759051528,-480.0,0.00022191,3]
[380430625,1755759051537,-390.27273238,0.00022191,3]
[380430626,1755759051547,-480.0,0.00022191,3]
[380430627,1755759051557,-480.0,0.00022191,3]
[380430628,1755759051566,-480.0,0.00022191,3]
[380430629,1755759051575,-480.0,0.00022191,3]
[380430630,1755759051584,-480.0,0.00022191,3]
[380430631,1755759051594,-282.33655905,0.00022191,3]
[380430632,1755759051603,-480.0,0.00022191,3]
[380430633,1755759051612,-480.0,0.00022191,3]
[380430634,1755759051621,-480.0,0.00022191,3]
[380430635,1755759051631,-480.0,0.00022191,3]
[380430636,1755759051640,-480.0,0.00022191,3]
[380430637,1755759051649,-482.27969462,0.00022191,3]
[380430638,1755759051658,-480.0,0.00022191,3]
[380430639,1755759051668,-480.0,0.00022191,3]
[380430640,1755759051677,-480.0,0.00022191,3]
[380430641,1755759051686,-480.0,0.00022191,3]
[380430642,1755759051696,-480.0,0.00022191,3]
[380430643,1755759051705,-514.2014962,0.00022191,2]
[380430644,1755759051714,-480.0,0.00022191,3]
[380430645,1755759051723,-480.0,0.00022191,3]
[380430646,1755759051732,-480.0,0.00022191,3]
[380430647,1755759051742,-292.70750871,0.00022191,3]
[380430648,1755759051751,-926.12,0.00022191,3]
[380430649,1755759051760,-636.57,0.00022191,3]
[380430650,1755759051770,-480.0,0.00022191,3]
[380430651,1755759051779,-480.0,0.00022191,3]
[380430652,1755759051788,-385.21600449,0.00022191,3]
[380430653,1755759051798,-480.0,0.00022191,3]
[380430654,1755759051808,-1077.62,0.00022191,3]
[380430655,1755759051817,-492.87,0.00022191,3]
[380430656,1755759051826,-676.49,0.00022191,3]
[380430657,1755759051835,-480.0,0.00022191,3]
[380430658,1755759051843,-480.0,0.00022191,3]
[380430659,1755759051852,-480.0,0.00022191,3]
[380430660,1755759051862,-480.0,0.00022191,3]
[380430661,1755759051873,-480.0,0.00022191,3]
[380430662,1755759051883,-480.0,0.00022191,3]
[380430663,1755759051892,-480.0,0.00022191,3]
[380430664,1755759051902,-672.57,0.00022191,3]
[380430665,1755759051911,-480.0,0.00022191,3]
[380430666,1755759051920,-480.0,0.00022191,3]
[380430667,1755759051929,-480.0,0.00022191,3]
[380430668,1755759051940,-611.77012824,0.00022191,3]
[380430669,1755759051949,-480.0,0.00022191,3]
[380430670,1755759051958,-480.0,0.00022191,3]
[380430671,1755759051967,-480.0,0.00022191,3]
[380430672,1755759051976,-480.0,0.00022191,3]
[380430673,1755759051985,-480.0,0.00022191,3]
[380430674,1755759051995,-480.0,0.00022191,3]
[380430675,1755759052004,-480.0,0.00022191,3]
[380430676,1755759052013,-480.0,0.00022191,3]
[380430677,1755759052022,-480.0,0.00022191,3]
[380430678,1755759052031,-480.0,0.00022191,3]
[380430679,1755759052040,-480.0,0.00022191,3]
[380430680,1755759052050,-480.0,0.00022191,3]
[380430681,1755759052059,-461.22198997,0.00022191,3]
[380430682,1755759052069,-480.0,0.00022191,3]
[380430683,1755759052078,-551.78,0.00022191,3]
[380430684,1755759052088,-480.0,0.00022191,3]
[380430685,1755759052098,-480.0,0.00022191,3]
[380430686,1755759052107,-480.0,0.00022191,3]
[380430687,1755759052117,-621.56,0.00022191,3]
[380430688,1755759052127,-480.0,0.00022191,3]
[380430689,1755759052136,-480.0,0.00022191,3]
[380430690,1755759052146,-480.0,0.00022191,3]
[380430691,1755759052156,-917.75,0.00022191,3]
[380430692,1755759052166,-480.0,0.00022191,3]
[380430693,1755759052177,-422.01998779,0.00022191,3]
[380430694,1755759052187,-480.0,0.00022191,3]
[380430695,1755759052197,-480.0,0.00022191,3]
[380430696,1755759052207,-480.0,0.00022191,3]
[380430697,1755759052217,-1843.9,0.00022191,3]
[380430698,1755759052228,-480.0,0.00022191,3]
[380430699,1755759052238,-480.0,0.00022191,3]
[380430700,1755759052248,-480.0,0.00022191,3]
[380430701,1755759052258,-480.0,0.00022191,3]
[380430702,1755759052269,-480.0,0.00022191,3]
[380430703,1755759052278,-480.0,0.00022191,3]
[380430704,1755759052288,-480.0,0.00022191,3]
[380430705,1755759052297,-480.0,0.00022191,3]
[380430706,1755759052306,-480.0,0.00022191,3]
[380430707,1755759052316,-1815.53,0.00022191,3]
[380430708,1755759052326,-480.0,0.00022191,3]
[380430709,1755759052335,-700.95,0.00022191,3]
[380430710,1755759052344,-480.0,0.00022191,3]
[380430711,1755759052354,-480.0,0.00022191,3]
[380430712,1755759052364,-510.24129887,0.00022191,3]
[380430713,1755759052374,-480.0,0.00022191,3]
[380430714,1755759052384,-647.32,0.00022191,3]
[380430715,1755759052398,-480.0,0.00022191,3]
[380430716,1755759052408,-480.0,0.00022191,3]
[380430717,1755759052418,-480.0,0.00022191,3]
[380430718,1755759052427,-532.96,0.00022191,3]
[380430719,1755759052437,-480.0,0.00022191,3]
[380430720,1755759052446,-551.63050292,0.00022191,3]
[380430721,1755759052456,-543.65239918,0.00022191,3]
[380430722,1755759052465,-480.0,0.00022191,3]
[380430723,1755759052474,-480.0,0.00022191,3]
[380430724,1755759052484,-480.0,0.00022191,3]
[380430725,1755759052494,-480.0,0.00022191,3]
[380430726,1755759052504,-1003.21,0.00022191,3]
[380430727,1755759052513,-421.77302975,0.00022191,3]
[380430728,1755759052523,-834.82,0.00022191,3]
[380430729,1755759052532,-233.89045515,0.00022191,3]
[380430730,1755759052541,-480.0,0.00022191,3]
[380430731,1755759052550,-480.0,0.00022191,3]
[380430732,1755759052559,-480.0,0.00022191,3]
[380430733,1755759052569,-480.0,0.00022191,3]
[380430734,1755759052578,-982.61,0.00022191,3]
[380430735,1755759052588,-480.0,0.00022191,3]
[380430736,1755759052597,-693.93,0.00022191,3]
[380430737,1755759052607,-480.0,0.00022191,3]
[380430738,1755759052616,-480.0,0.00022191,3]
[380430739,1755759052626,-480.0,0.00022191,3]
[380430740,1755759052635,-732.16,0.00022191,3]
[380430741,1755759052645,-480.0,0.00022191,3]
[380430742,1755759052654,-480.0,0.00022191,3]
[380430743,1755759052664,-525.71,0.00022191,3]
[380430744,1755759052674,-853.41,0.00022191,3]
[380430745,1755759052683,-480.0,0.00022191,3]
[380430746,1755759052693,-480.0,0.00022191,3]
[380430747,1755759052704,-480.0,0.00022191,3]
[380430748,1755759052713,-480.0,0.00022191,3]
[380430749,1755759052724,-480.0,0.00022191,3]
[380430750,1755759052734,-480.0,0.00022191,3]
[380430751,1755759052743,-480.0,0.00022191,3]
[380430752,1755759052753,-469.2813466,0.00022191,3]
[380430753,1755759052762,-480.0,0.00022191,3]
[380430754,1755759052772,-480.0,0.00022191,3]
[380430755,1755759052782,-480.0,0.00022191,3]
[380430756,1755759052791,-480.0,0.00022191,3]
[380430757,1755759052801,-317.16519404,0.00022191,3]
[380430758,1755759052810,-480.0,0.00022191,3]
[380430759,1755759052820,-655.92,0.00022191,3]
[380430760,1755759052829,-574.47891164,0.00022191,3]
[380430761,1755759052839,-480.0,0.00022191,3]
[380430762,1755759052849,-480.0,0.00022191,3]
[380430763,1755759052858,-480.0,0.00022191,3]
[380430764,1755759052868,-4733.37,0.00022191,3]
[380430765,1755759052878,-480.0,0.00022191,3]
[380430766,1755759052888,-480.0,0.00022191,3]
[380430767,1755759052897,-480.0,0.00022191,3]
[380430768,1755759052907,-480.0,0.00022191,3]
[380430769,1755759052916,-480.0,0.00022191,3]
[380430770,1755759053072,-480.0,0.00022191,3]
[380430771,1755759053083,-480.0,0.00022191,3]
[380430772,1755759053092,-480.0,0.00022191,3]
[380430773,1755759053102,-480.0,0.00022191,3]
[380430774,1755759053112,-441.86504053,0.00022191,3]
[380430775,1755759053121,-480.0,0.00022191,3]
[380430776,1755759053131,-480.0,0.00022191,3]
[380430777,1755759053140,-480.0,0.00022191,3]
[380430778,1755759053149,-480.0,0.00022191,3]
[380430779,1755759053158,-480.0,0.00022191,3]
[380430780,1755759053168,-676.83,0.00022191,3]
[380430781,1755759053178,-480.0,0.00022191,3]
[380430782,1755759053188,-480.0,0.00022191,3]
[380430783,1755759053197,-843.56,0.00022191,3]
[380430784,1755759053207,-480.0,0.00022191,3]
[380430785,1755759053216,-460.96332904,0.00022191,3]
[380430786,1755759053226,-480.0,0.00022191,3]
[380430787,1755759053236,-480.0,0.00022191,3]
[380430788,1755759053246,-1090.43,0.00022191,3]
[380430789,1755759053257,-480.0,0.00022191,3]
[380430790,1755759053267,-480.0,0.00022191,3]
[380430791,1755759053277,-497.49,0.00022191,3]
[380430792,1755759053287,-480.0,0.00022191,3]
[380430793,1755759053297,-480.0,0.00022191,3]
[380430794,1755759053307,-548.97,0.00022191,3]
[380430795,1755759053317,-634.32,0.00022191,3]
[380430796,1755759053326,-480.0,0.00022191,3]
[380430797,1755759053336,-480.0,0.00022191,3]
[380430798,1755759053346,-480.0,0.00022191,3]
[380430799,1755759053355,-480.0,0.00022191,3]
[380430800,1755759053365,-480.0,0.00022191,3]
[380430801,1755759053374,-480.0,0.00022191,3]
[380430802,1755759053383,-480.0,0.00022191,3]
[380430803,1755759053397,-406.47903385,0.00022191,3]
[380430804,1755759053406,-442.86378633,0.00022191,3]
[380430805,1755759053416,-759.68,0.00022191,3]
[380430806,1755759053425,-607.72,0.00022191,3]
[380430807,1755759053435,-482.24031492,0.00022191,3]
[380430808,1755759053444,-562.78,0.00022191,3]
[380430809,1755759053453,-480.0,0.00022191,3]
[380430810,1755759053463,-596.33,0.00022191,3]
[380430811,1755759053473,-480.0,0.00022191,3]
[380430812,1755759053483,-1374.35,0.00022191,3]
[380430813,1755759053492,-480.0,0.00022191,3]
[380430814,1755759053503,-480.0,0.00022191,3]
[380430815,1755759053513,-480.0,0.00022191,3]
[380430816,1755759053523,-480.0,0.00022191,2]
[380430817,1755759053532,-481.72758987,0.00022191,3]
[380430818,1755759053542,-480.0,0.00022191,3]
[380430819,1755759053552,-480.0,0.00022191,3]
[380430820,1755759053562,-506.16,0.00022191,3]
[380430821,1755759053571,-1142.56,0.00022191,3]
[380430822,1755759053581,-480.0,0.00022191,3]
[380430823,1755759053590,-480.0,0.00022191,3]
[380430824,1755759053600,-423.2918939,0.00022191,3]
[380430825,1755759053609,-480.0,0.00022191,3]
[380430826,1755759053618,-567.12452729,0.00022191,3]
[380430827,1755759053628,-480.0,0.00022191,3]
[380430828,1755759053637,-480.0,0.00022191,3]
[380430829,1755759053647,-480.0,0.00022191,3]
[380430830,1755759053656,-5339.59,0.00022191,3]
[380430831,1755759053665,-480.0,0.00022191,3]
[380430832,1755759053675,-480.0,0.00022191,3]
[380430833,1755759053684,-1259.82,0.00022191,3]
[380430834,1755759053694,-480.0,0.00022191,3]
[380430835,1755759053703,-480.0,0.00022191,3]
[380430836,1755759053713,-480.0,0.00022191,3]
[380430837,1755759053722,-1694.5,0.00022191,3]
[380430838,1755759053732,-400.0,0.00022191,3]
[380430839,1755759053742,-1549.72,0.00022191,3]
[380430840,1755759053751,-480.0,0.00022191,3]
[380430841,1755759053761,-480.0,0.00022191,3]
[380430842,1755759053770,-736.26,0.00022191,3]
[380430843,1755759053780,-480.0,0.00022191,3]
[380430844,1755759053789,-2820.66,0.00022191,3]
[380430845,1755759053798,-647.23,0.00022191,3]
[380430846,1755759053808,-480.0,0.00022191,3]
[380430847,1755759053817,-3695.53,0.00022191,3]
[380430848,1755759053827,-480.0,0.00022191,3]
[380430849,1755759053837,-480.0,0.00022191,3]
[380430850,1755759053847,-480.0,0.00022191,3]
[380430851,1755759053856,-480.0,0.00022191,3]
[380430852,1755759053866,-480.0,0.00022191,3]
[380430853,1755759053876,-480.0,0.00022191,3]
[380430854,1755759053886,-592.37,0.00022191,3]
[380430855,1755759053895,-480.0,0.00022191,3]
[380430856,1755759053905,-1763.46,0.00022191,3]
[380430857,1755759053915,-612.64,0.00022191,3]
[380430858,1755759053924,-2421.34,0.00022191,3]
[380430859,1755759053934,-420.451648,0.00022191,3]
[380430860,1755759053944,-1484.98,0.00022191,3]
[380430861,1755759053953,-1851.34,0.00022191,3]
[380430862,1755759053963,-480.0,0.00022191,3]
[380430863,1755759053972,-480.0,0.00022191,3]
[380430864,1755759053982,-480.0,0.00022191,3]
[380430865,1755759053991,-480.0,0.00022191,3]
[380430866,1755759054002,-1255.19,0.00022191,3]
[380430867,1755759054012,-480.0,0.00022191,3]
[380430868,1755759054022,-480.0,0.00022191,3]
[380430869,1755759054031,-676.9,0.00022191,3]
[380430870,1755759054041,-384.92623882,0.00022191,3]
[380430871,1755759054050,-480.0,0.00022191,3]
[380430872,1755759054059,-480.0,0.00022191,3]
[380430873,1755759054069,-480.0,0.00022191,3]
[380430874,1755759054079,-480.0,0.00022191,3]
[380430875,1755759054088,-480.0,0.00022191,3]
[380430876,1755759054098,-480.0,0.00022191,3]
[380430877,1755759054107,-480.0,0.00022191,3]
[380430878,1755759054116,-480.0,0.00022191,3]
[380430879,1755759054126,-480.0,0.00022191,3]
[380430880,1755759054135,-480.0,0.00022191,3]
[380430881,1755759054147,-480.0,0.00022191,3]
[380430882,1755759054157,-1945.32,0.00022191,3]
[380430883,1755759054166,-480.0,0.00022191,3]
[380430884,1755759054176,-480.0,0.00022191,3]
[380430885,1755759054186,-480.0,0.00022191,3]
[380430886,1755759054196,-480.0,0.00022191,3]
[380430887,1755759054205,-481.2746971,0.00022191,3]
[380430888,1755759054215,-544.64,0.00022191,3]
[380430889,1755759054225,-1083.36,0.00022191,3]
[380430890,1755759054234,-480.0,0.00022191,3]
[380430891,1755759054244,-480.0,0.00022191,3]
[380430892,1755759054255,-430.96913382,0.00022191,3]
[380430893,1755759054264,-480.0,0.00022191,3]
[380430894,1755759054274,-480.0,0.00022191,3]
[380430895,1755759054283,-480.0,0.00022191,3]
[380430896,1755759054292,-480.0,0.00022191,3]
[380430897,1755759054302,-511.22,0.00022191,3]
[380430898,1755759054312,-619.05,0.00022191,3]
[380430899,1755759054321,-4931.42,0.00022191,3]
[380430900,1755759054331,-866.25,0.00022191,3]
[380430901,1755759054341,-480.0,0.00022191,3]
[380430902,1755759054350,-480.0,0.00022191,3]
[380430903,1755759054360,-480.0,0.00022191,3]
[380430904,1755759054370,-480.0,0.00022191,3]
[380430905,1755759054379,-480.0,0.00022191,3]
[380430906,1755759054388,-563.67,0.00022191,3]
[380430907,1755759054400,-2806.24,0.00022191,3]
[380430908,1755759054410,-632.33,0.00022191,3]
[380430909,1755759054420,-1918.64,0.00022191,3]
[380430910,1755759054429,-4394.04,0.00022191,3]
[380430911,1755759054439,-480.0,0.00022191,3]
[380430912,1755759054449,-480.0,0.00022191,3]
[380430913,1755759054459,-480.0,0.00022191,3]
[380430914,1755759054470,-480.0,0.00022191,3]
[380430915,1755759054480,-480.0,0.00022191,3]
[380430916,1755759054489,-820.47,0.00022191,3]
[380430917,1755759054499,-480.0,0.00022191,3]
[380430918,1755759054508,-480.0,0.00022191,3]
[380430919,1755759054517,-480.0,0.00022191,3]
[380430920,1755759054527,-480.0,0.00022191,3]
[380430921,1755759054537,-910.82,0.00022191,3]
[380430922,1755759054547,-928.51,0.00022191,3]
[380430923,1755759054557,-349.87376623,0.00022191,3]
[380430924,1755759054566,-584.88,0.00022191,3]
[380430925,1755759054577,-482.83783673,0.00022191,3]
[380430926,1755759054586,-480.0,0.00022191,3]
[380430927,1755759054596,-480.0,0.00022191,3]
[380430928,1755759054606,-426.11173654,0.00022191,3]
[380430929,1755759054615,-6721.46,0.00022191,3]
[380430930,1755759054625,-1032.27,0.00022191,3]
[380430931,1755759054635,-2218.5,0.00022191,3]
[380430932,1755759054645,-480.0,0.00022191,3]
[380430933,1755759054654,-480.0,0.00022191,3]
[380430934,1755759054663,-480.0,0.00022191,3]
[380430935,1755759054672,-480.0,0.00022191,3]
[380430936,1755759054682,-480.0,0.00022191,3]
[380430937,1755759054691,-2630.27,0.00022191,3]
[380430938,1755759054701,-480.0,0.00022191,3]
[380430939,1755759054710,-455.82563843,0.00022191,3]
[380430940,1755759054719,-523.2,0.00022191,3]
[380430941,1755759054728,-480.0,0.00022191,3]
[380430942,1755759054738,-480.0,0.00022191,3]
[380430943,1755759054747,-587.54,0.00022191,3]
[380430944,1755759054756,-1901.81,0.00022191,3]
[380430945,1755759054765,-480.0,0.00022191,3]
[380430946,1755759054774,-448.43063686,0.00022191,3]
[380430947,1755759054784,-480.0,0.00022191,3]
[380430948,1755759054793,-480.0,0.00022191,3]
[380430949,1755759054802,-614.35,0.00022191,3]
[380430950,1755759054812,-480.0,0.00022191,3]
[380430951,1755759054821,-2956.65,0.00022191,3]
[380430952,1755759054831,-480.0,0.00022191,3]
[380430953,1755759054840,-164.22988635,0.00022191,3]
[380430954,1755759054865,-315.77011365,0.00022191,3]
[380430955,1755759054875,-480.0,0.00022191,3]
[380430956,1755759054884,-400.22528574,0.00022191,3]
[380430957,1755759054896,-79.77471426,0.00022191,3]
[380430958,1755759054907,-480.0,0.00022191,3]
[380430959,1755759054916,-1453.76,0.00022191,3]
[380430960,1755759054926,-943.8,0.00022191,3]
[380430961,1755759054935,-2039.01,0.00022191,3]
[380430962,1755759054944,-780.42,0.00022191,3]
[380430963,1755759054961,-480.0,0.00022191,3]
[380430964,1755759054980,-480.0,0.00022191,3]
[380430965,1755759054989,-935.58,0.00022191,3]
[380430966,1755759054999,-480.0,0.00022191,2]
[380430967,1755759055008,-480.0,0.00022191,3]
[380430968,1755759055017,-480.0,0.00022191,3]
[380430969,1755759055026,-480.0,0.00022191,3]
[380430970,1755759055035,-5229.26,0.00022191,3]
[380430971,1755759055045,-480.0,0.00022191,3]